[Event "Rapid Tournament (RAP)"]
[Site "Biel, Switzerland"]
[Date "2026.07.12"]
[Round "2.12"]
[White "Gloeckler, Christian"]
[Black "Aryan, Mehta"]
[Result "1-0"]
[TimeControl "15 + 5"]
[WhiteTitle "-"]
[BlackTitle "-"]
[WhiteFideId "34608966"]
[BlackFideId "33329664"]
[WhiteElo "2332"]
[BlackElo "1921"]

1. Nf3 {[%clk 00:15:05]} Nf6 {[%clk 00:15:05]} 2. c4 {[%clk 00:15:05]} e6
{[%clk 00:15:05]} 3. b3 {[%clk 00:15:05]} b6 {[%clk 00:15:05]} 4. g3 {[%clk
00:15:05]} Bb7 {[%clk 00:15:05]} 5. Bg2 {[%clk 00:15:05]} Be7 {[%clk 00:15:05]}
6. Bb2 {[%clk 00:15:05]} O-O {[%clk 00:15:05]} 7. O-O {[%clk 00:15:05]} d6
{[%clk 00:15:05]} 8. d3 {[%clk 00:15:05]} Nbd7 {[%clk 00:15:05]} 9. e4 {[%clk
00:15:05]} e5 {[%clk 00:15:05]} 10. Nc3 {[%clk 00:15:05]} Nc5 {[%clk 00:15:05]}
11. Re1 {[%clk 00:15:05]} a5 {[%clk 00:15:05]} 12. Nh4 {[%clk 00:15:05]} Re8
{[%clk 00:15:05]} 13. d4 {[%clk 00:15:05]} exd4 14. Qxd4 {[%clk 00:10:00]} Ne6
{[%clk 00:08:16]} {[%emt 00:02:52]} 15. Qd2 {[%clk 00:09:25]} {[%emt 00:00:40]}
Nd7 {[%clk 00:05:39]} {[%emt 00:02:42]} 16. Nf5 {[%clk 00:09:00]} {[%emt
00:00:29]} Bf6 {[%clk 00:05:41]} {[%emt 00:00:04]} 17. e5 {[%clk 00:06:45]}
{[%emt 00:02:21]} Bxg2 {[%clk 00:03:49]} {[%emt 00:01:57]} 18. exf6 {[%clk
00:06:47]} {[%emt 00:00:02]} Qxf6 {[%clk 00:02:25]} {[%emt 00:01:28]} 19. Nxg7
{[%clk 00:06:27]} {[%emt 00:00:26]} Nxg7 {[%clk 00:00:30]} {[%emt 00:02:01]} 20.
Kxg2 {[%clk 00:06:26]} {[%emt 00:00:05]} Ne5 {[%clk 00:00:32]} {[%emt
00:00:04]} 21. f4 {[%clk 00:06:21]} {[%emt 00:00:09]} Nc6 {[%clk 00:00:09]}
{[%emt 00:00:28]} 22. Nd5 {[%clk 00:06:21]} {[%emt 00:00:05]} Qd8 {[%clk
00:00:08]} {[%emt 00:00:06]} 23. Nf6+ {[%clk 00:06:21]} {[%emt 00:00:04]} Kf8
{[%clk 00:00:07]} {[%emt 00:00:07]} 24. Nxh7+ {[%clk 00:06:24]} {[%emt
00:00:02]} Kg8 {[%clk 00:00:10]} {[%emt 00:00:02]} 25. Nf6+ {[%clk 00:06:28]}
Kf8 {[%clk 00:00:14]} {[%emt 00:00:02]} 26. Nxe8 {[%clk 00:06:29]} {[%emt
00:00:03]} Nxe8 {[%clk 00:00:17]} {[%emt 00:00:01]} 27. Qd5 {[%clk 00:15:05]}
{[%emt 00:00:24]} 1-0

[Event "Rapid Tournament (RAP)"]
[Site "Biel, Switzerland"]
[Date "2026.07.12"]
[Round "2.13"]
[White "Lopez, Manuel"]
[Black "Savitha, Shri B"]
[Result "0-1"]
[TimeControl "15 + 5"]
[WhiteTitle "-"]
[BlackTitle "-"]
[WhiteFideId "1306324"]
[BlackFideId "35061887"]
[WhiteElo "1916"]
[BlackElo "2317"]

1. e4 {[%clk 00:14:58]} {[%emt 00:00:12]} c5 {[%clk 00:15:09]} {[%emt
00:00:02]} 2. Nf3 {[%clk 00:15:01]} {[%emt 00:00:01]} e6 {[%clk 00:15:13]}
{[%emt 00:00:01]} 3. b4 {[%clk 00:15:04]} {[%emt 00:00:03]} cxb4 {[%clk
00:14:52]} {[%emt 00:00:25]} 4. d4 {[%clk 00:15:06]} {[%emt 00:00:02]} Nf6
{[%clk 00:13:51]} {[%emt 00:01:06]} 5. Bd3 {[%clk 00:15:08]} {[%emt 00:00:03]}
Nc6 {[%clk 00:13:45]} {[%emt 00:00:12]} 6. a3 {[%clk 00:15:05]} {[%emt
00:00:08]} d5 {[%clk 00:12:18]} {[%emt 00:01:33]} 7. e5 {[%clk 00:15:06]}
{[%emt 00:00:03]} Ne4 {[%clk 00:11:55]} {[%emt 00:00:27]} 8. O-O {[%clk
00:14:58]} {[%emt 00:00:13]} bxa3 {[%clk 00:11:02]} {[%emt 00:00:58]} 9. c3
{[%clk 00:14:17]} {[%emt 00:00:47]} Be7 {[%clk 00:10:45]} {[%emt 00:00:22]} 10.
Bxa3 {[%clk 00:14:14]} {[%emt 00:00:08]} Bxa3 {[%clk 00:09:43]} {[%emt
00:01:07]} 11. Rxa3 {[%clk 00:14:16]} {[%emt 00:00:03]} Ng5 {[%clk 00:09:08]}
{[%emt 00:00:39]} 12. Nxg5 {[%clk 00:11:42]} {[%emt 00:02:40]} Qxg5 {[%emt
00:00:05]} 13. f4 {[%clk 00:11:44]} Qe7 {[%clk 00:08:59]} {[%emt 00:00:17]} 14.
Ra2 {[%clk 00:11:12]} {[%emt 00:00:37]} O-O {[%clk 00:08:46]} {[%emt 00:00:16]}
15. Qh5 {[%clk 00:10:57]} {[%emt 00:00:22]} g6 {[%clk 00:08:43]} {[%emt
00:00:08]} 16. Qh6 {[%clk 00:10:58]} {[%emt 00:00:03]} f6 {[%clk 00:07:57]}
{[%emt 00:00:52]} 17. Raf2 {[%clk 00:10:23]} {[%emt 00:00:40]} Qg7 {[%clk
00:07:46]} {[%emt 00:00:16]} 18. Qh4 {[%clk 00:10:11]} {[%emt 00:00:17]} Bd7
{[%clk 00:07:49]} {[%emt 00:00:02]} 19. Na3 {[%clk 00:09:40]} {[%emt 00:00:36]}
Ne7 {[%clk 00:07:50]} {[%emt 00:00:04]} 20. g4 {[%clk 00:09:23]} {[%emt
00:00:22]} Rac8 {[%clk 00:07:14]} {[%emt 00:00:42]} 21. c4 {[%clk 00:07:37]}
{[%emt 00:01:51]} Nc6 {[%clk 00:06:38]} {[%emt 00:00:40]} 22. cxd5 {[%clk
00:07:29]} {[%emt 00:00:12]} Nxd4 {[%clk 00:06:32]} {[%emt 00:00:12]} 23. dxe6
{[%clk 00:06:44]} {[%emt 00:00:51]} Bxe6 {[%clk 00:06:26]} {[%emt 00:00:10]} 24.
Be4 {[%clk 00:03:54]} {[%emt 00:02:55]} fxe5 {[%clk 00:05:41]} {[%emt
00:00:50]} 25. Kh1 {[%clk 00:03:31]} {[%emt 00:00:28]} exf4 {[%clk 00:05:40]}
{[%emt 00:00:06]} 26. g5 {[%clk 00:02:30]} {[%emt 00:01:06]} Qe5 {[%clk
00:04:22]} {[%emt 00:01:22]} 27. Bxb7 {[%clk 00:01:23]} {[%emt 00:01:12]} Bd5+
{[%clk 00:04:09]} {[%emt 00:00:19]} 28. Bxd5+ {[%clk 00:01:26]} {[%emt
00:00:02]} Qxd5+ {[%clk 00:04:13]} 29. Kg1 {[%clk 00:01:28]} {[%emt 00:00:03]}
Rc3 {[%clk 00:04:11]} {[%emt 00:00:06]} 30. Rxf4 {[%clk 00:00:23]} {[%emt
00:01:11]} Ne2+ {[%clk 00:04:10]} {[%emt 00:00:06]} 0-1

[Event "Rapid Tournament (RAP)"]
[Site "Biel, Switzerland"]
[Date "2026.07.12"]
[Round "2.14"]
[White "Maier, Christian"]
[Black "Materia, Mario"]
[Result "1-0"]
[TimeControl "15 + 5"]
[WhiteTitle "-"]
[BlackTitle "-"]
[WhiteFideId "4601955"]
[BlackFideId "651082241"]
[WhiteElo "2314"]
[BlackElo "1914"]

1. e4 {[%clk 00:15:04]} {[%emt 00:00:05]} e5 {[%clk 00:15:08]} {[%emt
00:00:03]} 2. Nf3 {[%clk 00:15:07]} {[%emt 00:00:04]} Nc6 {[%clk 00:15:11]} 3.
Bb5 {[%clk 00:15:11]} {[%emt 00:00:01]} a6 {[%clk 00:15:14]} {[%emt 00:00:03]}
4. Ba4 {[%clk 00:15:15]} {[%emt 00:00:01]} Nf6 {[%clk 00:15:08]} {[%emt
00:00:09]} 5. d3 {[%clk 00:15:19]} {[%emt 00:00:02]} b5 {[%clk 00:15:07]}
{[%emt 00:00:07]} 6. Bb3 {[%clk 00:15:22]} {[%emt 00:00:01]} Be7 {[%clk
00:14:58]} {[%emt 00:00:14]} 7. O-O {[%clk 00:15:09]} {[%emt 00:00:17]} d6
{[%clk 00:14:56]} {[%emt 00:00:08]} 8. c3 {[%clk 00:15:12]} {[%emt 00:00:02]}
O-O {[%clk 00:14:50]} {[%emt 00:00:11]} 9. Re1 {[%clk 00:15:11]} {[%emt
00:00:05]} Nb8 {[%clk 00:14:35]} {[%emt 00:00:22]} 10. a4 {[%clk 00:14:37]}
{[%emt 00:00:39]} Bb7 {[%clk 00:14:00]} {[%emt 00:00:40]} 11. Nbd2 {[%clk
00:14:21]} {[%emt 00:00:19]} Nbd7 {[%clk 00:13:48]} {[%emt 00:00:18]} 12. d4
{[%clk 00:14:25]} {[%emt 00:00:02]} c5 {[%clk 00:13:44]} {[%emt 00:00:08]} 13.
Bc2 {[%clk 00:14:00]} {[%emt 00:00:30]} Qc7 {[%clk 00:13:23]} {[%emt 00:00:26]}
14. d5 {[%clk 00:13:51]} {[%emt 00:00:14]} c4 {[%clk 00:12:43]} {[%emt
00:00:44]} 15. Nf1 {[%clk 00:13:30]} {[%emt 00:00:27]} Nc5 {[%clk 00:11:59]}
{[%emt 00:00:49]} 16. Ng3 {[%clk 00:13:06]} {[%emt 00:00:28]} g6 {[%clk
00:11:09]} {[%emt 00:00:55]} 17. h3 {[%clk 00:08:41]} {[%emt 00:04:31]} Rfb8
{[%clk 00:10:15]} {[%emt 00:00:59]} 18. Bh6 {[%clk 00:07:56]} {[%emt 00:00:49]}
Bf8 {[%clk 00:08:43]} {[%emt 00:01:38]} 19. Qd2 {[%clk 00:07:53]} {[%emt
00:00:08]} Ncd7 {[%clk 00:08:38]} {[%emt 00:00:10]} 20. Nh4 {[%clk 00:07:09]}
{[%emt 00:00:47]} Bc8 {[%clk 00:07:35]} {[%emt 00:01:10]} 21. a5 {[%clk
00:06:51]} {[%emt 00:00:23]} Qc5 {[%clk 00:06:07]} {[%emt 00:01:33]} 22. Bxf8
{[%clk 00:04:23]} {[%emt 00:02:34]} Nxf8 {[%clk 00:06:05]} {[%emt 00:00:06]} 23.
Kh2 {[%clk 00:04:18]} {[%emt 00:00:10]} b4 {[%clk 00:04:36]} {[%emt 00:01:34]}
24. f4 {[%clk 00:04:08]} {[%emt 00:00:15]} bxc3 {[%clk 00:03:53]} {[%emt
00:00:48]} 25. bxc3 {[%clk 00:04:12]} Ne8 {[%clk 00:03:12]} {[%emt 00:00:46]}
26. Ba4 {[%clk 00:03:59]} {[%emt 00:00:18]} Bd7 {[%clk 00:02:47]} {[%emt
00:00:30]} 27. fxe5 {[%clk 00:04:03]} {[%emt 00:00:01]} Bxa4 {[%clk 00:02:32]}
{[%emt 00:00:20]} 28. Rxa4 {[%clk 00:04:07]} {[%emt 00:00:01]} dxe5 {[%clk
00:02:34]} {[%emt 00:00:03]} 29. Qh6 {[%clk 00:02:59]} {[%emt 00:01:12]} Rb3
{[%clk 00:01:42]} {[%emt 00:00:58]} 30. Re3 {[%clk 00:02:50]} {[%emt 00:00:13]}
Rb1 {[%clk 00:01:36]} {[%emt 00:00:12]} 31. Ra2 {[%clk 00:02:31]} {[%emt
00:00:25]} Rab8 {[%clk 00:01:35]} {[%emt 00:00:06]} 32. Rf2 {[%clk 00:02:31]}
{[%emt 00:00:04]} R8b2 {[%clk 00:01:07]} {[%emt 00:00:33]} 33. Rxb2 {[%clk
00:02:26]} {[%emt 00:00:09]} Rxb2 {[%clk 00:01:11]} {[%emt 00:00:02]} 34. Ngf5
{[%clk 00:02:16]} {[%emt 00:00:15]} Rb7 {[%clk 00:00:24]} {[%emt 00:00:53]} 35.
d6 {[%clk 00:02:10]} {[%emt 00:00:11]} Ne6 {[%clk 00:00:11]} {[%emt 00:00:18]}
36. Ne7+ {[%clk 00:01:47]} {[%emt 00:00:28]} Kh8 {[%clk 00:00:08]} {[%emt
00:00:08]} 37. Rf3 {[%clk 00:01:18]} {[%emt 00:00:34]} Nxd6 {[%emt 00:00:07]}
38. Rxf7 {[%clk 00:01:09]} {[%emt 00:00:13]} Nxf7 {[%clk 00:00:09]} {[%emt
00:00:02]} 39. Nhxg6# {[%emt 00:00:02]} 1-0

[Event "Rapid Tournament (RAP)"]
[Site "Biel, Switzerland"]
[Date "2026.07.12"]
[Round "2.15"]
[White "Ivarsson, Anders"]
[Black "Lu, Miaoyi"]
[Result "0-1"]
[TimeControl "15 + 5"]
[WhiteTitle "-"]
[BlackTitle "-"]
[WhiteFideId "1768158"]
[BlackFideId "8618020"]
[WhiteElo "1907"]
[BlackElo "2309"]

1. Nf3 {[%clk 00:15:09]} Nf6 {[%clk 00:15:07]} {[%emt 00:00:05]} 2. c4 {[%clk
00:15:13]} e6 {[%clk 00:15:10]} {[%emt 00:00:02]} 3. g3 {[%clk 00:15:11]}
{[%emt 00:00:07]} d5 {[%clk 00:15:07]} {[%emt 00:00:08]} 4. Bg2 {[%clk
00:15:12]} {[%emt 00:00:04]} Be7 {[%clk 00:15:10]} {[%emt 00:00:02]} 5. O-O
{[%clk 00:15:15]} {[%emt 00:00:02]} O-O {[%clk 00:15:13]} {[%emt 00:00:02]} 6.
a4 {[%clk 00:15:05]} {[%emt 00:00:15]} a5 {[%clk 00:14:16]} {[%emt 00:01:02]} 7.
Na3 {[%clk 00:14:56]} {[%emt 00:00:14]} c6 {[%clk 00:14:00]} {[%emt 00:00:21]}
8. b3 {[%clk 00:14:49]} {[%emt 00:00:12]} Na6 {[%clk 00:13:43]} {[%emt
00:00:22]} 9. Bb2 {[%clk 00:13:33]} {[%emt 00:01:21]} b6 {[%clk 00:13:34]}
{[%emt 00:00:14]} 10. Ne5 {[%clk 00:12:59]} {[%emt 00:00:39]} Bb7 {[%clk
00:13:38]} {[%emt 00:00:01]} 11. Rc1 {[%clk 00:12:57]} {[%emt 00:00:07]} Nd7
{[%clk 00:13:08]} {[%emt 00:00:35]} 12. Nxd7 {[%clk 00:12:10]} {[%emt
00:00:52]} Qxd7 {[%clk 00:13:12]} {[%emt 00:00:01]} 13. e3 {[%clk 00:11:06]}
{[%emt 00:01:08]} Rfd8 {[%clk 00:12:37]} {[%emt 00:00:40]} 14. Qg4 {[%clk
00:10:48]} {[%emt 00:00:23]} Bf8 {[%clk 00:12:05]} {[%emt 00:00:38]} 15. cxd5
{[%clk 00:10:11]} {[%emt 00:00:42]} cxd5 {[%clk 00:10:28]} {[%emt 00:01:43]} 16.
Nb5 {[%clk 00:08:46]} {[%emt 00:01:30]} Rac8 {[%clk 00:09:51]} {[%emt
00:00:41]} 17. Bd4 {[%clk 00:08:22]} {[%emt 00:00:29]} Nc5 {[%clk 00:09:47]}
{[%emt 00:00:09]} 18. Rb1 {[%clk 00:08:01]} {[%emt 00:00:26]} Ba6 {[%clk
00:09:12]} {[%emt 00:00:40]} 19. Qe2 {[%clk 00:07:46]} {[%emt 00:00:20]} Rc6
{[%clk 00:08:03]} {[%emt 00:01:14]} 20. f4 {[%clk 00:07:19]} {[%emt 00:00:32]}
Nb7 {[%clk 00:07:22]} {[%emt 00:00:46]} 21. Rfc1 {[%clk 00:07:03]} {[%emt
00:00:20]} Nd6 {[%clk 00:07:10]} {[%emt 00:00:18]} 22. Bf1 {[%clk 00:06:45]}
{[%emt 00:00:23]} Rdc8 {[%clk 00:07:05]} {[%emt 00:00:10]} 23. Qe1 {[%clk
00:06:28]} {[%emt 00:00:22]} Ne4 {[%clk 00:05:47]} {[%emt 00:01:22]} 24. Rxc6
{[%clk 00:05:56]} {[%emt 00:00:38]} Rxc6 {[%clk 00:05:49]} {[%emt 00:00:03]} 25.
Rc1 {[%clk 00:05:47]} {[%emt 00:00:14]} Bb4 {[%clk 00:05:31]} {[%emt 00:00:24]}
26. Bc3 {[%clk 00:04:48]} {[%emt 00:01:03]} Bxc3 {[%clk 00:04:17]} {[%emt
00:01:19]} 27. dxc3 {[%clk 00:04:25]} {[%emt 00:00:29]} e5 {[%clk 00:02:23]}
{[%emt 00:01:59]} 28. Bd3 {[%clk 00:03:13]} {[%emt 00:01:16]} Nc5 {[%clk
00:02:04]} {[%emt 00:00:23]} 29. Qd1 {[%clk 00:02:49]} {[%emt 00:00:30]} Rh6
{[%clk 00:01:21]} {[%emt 00:00:48]} 30. Qe2 {[%clk 00:01:08]} {[%emt 00:01:46]}
Nxb3 {[%clk 00:00:36]} {[%emt 00:00:51]} 31. Rb1 {[%clk 00:01:12]} Nc5 {[%clk
00:00:35]} {[%emt 00:00:06]} 32. fxe5 {[%clk 00:01:15]} {[%emt 00:00:02]} Nxa4
{[%clk 00:00:24]} {[%emt 00:00:16]} 33. Qc2 {[%clk 00:01:09]} {[%emt 00:00:11]}
Nc5 {[%clk 00:00:27]} {[%emt 00:00:02]} 34. c4 {[%clk 00:01:01]} {[%emt
00:00:13]} dxc4 {[%clk 00:00:15]} {[%emt 00:00:18]} 35. Bxc4 {[%clk 00:01:04]}
{[%emt 00:00:02]} Bb7 {[%clk 00:00:07]} {[%emt 00:00:12]} 36. Nd6 {[%clk
00:00:59]} {[%emt 00:00:10]} Qc6 {[%clk 00:00:06]} {[%emt 00:00:06]} 37. e4
{[%clk 00:00:51]} {[%emt 00:00:13]} Ne6 {[%clk 00:00:08]} {[%emt 00:00:04]} 38.
Qf2 {[%clk 00:00:41]} {[%emt 00:00:14]} Ng5 {[%clk 00:00:12]} {[%emt 00:00:02]}
39. h4 {[%clk 00:00:41]} {[%emt 00:00:04]} Nh3+ {[%clk 00:00:16]} {[%emt
00:00:01]} 40. Kg2 {[%clk 00:00:41]} {[%emt 00:00:05]} Nxf2 {[%clk 00:00:19]}
{[%emt 00:00:02]} 41. Kxf2 {[%clk 00:00:38]} {[%emt 00:00:08]} Rxd6 {[%clk
00:00:14]} {[%emt 00:00:10]} 42. exd6 {[%clk 00:00:41]} {[%emt 00:00:02]} Qxc4
{[%clk 00:00:14]} {[%emt 00:00:05]} 43. Re1 {[%clk 00:00:29]} {[%emt 00:00:17]}
Qd4+ {[%clk 00:00:16]} {[%emt 00:00:03]} 44. Kf1 {[%clk 00:00:23]} {[%emt
00:00:11]} Ba6+ {[%emt 00:00:10]} 45. Kg2 {[%clk 00:00:19]} {[%emt 00:00:03]}
Qd2+ {[%clk 00:00:19]} {[%emt 00:00:03]} 0-1

[Event "Rapid Tournament (RAP)"]
[Site "Biel, Switzerland"]
[Date "2026.07.12"]
[Round "2.16"]
[White "Cherniaev, Alexander"]
[Black "Lachat, Pierre"]
[Result "1-0"]
[TimeControl "15 + 5"]
[WhiteTitle "-"]
[BlackTitle "-"]
[WhiteFideId "4117301"]
[BlackFideId "1310763"]
[WhiteElo "2299"]
[BlackElo "1904"]

1. e4 {[%clk 00:15:07]} {[%emt 00:00:04]} c5 {[%clk 00:15:06]} {[%emt
00:00:03]} 2. Nc3 {[%clk 00:15:10]} {[%emt 00:00:04]} Nc6 {[%clk 00:15:08]} 3.
Bb5 {[%clk 00:15:13]} {[%emt 00:00:02]} d6 {[%clk 00:15:10]} {[%emt 00:00:03]}
4. Bxc6+ {[%clk 00:15:16]} {[%emt 00:00:02]} bxc6 {[%clk 00:15:14]} 5. d3
{[%clk 00:15:12]} {[%emt 00:00:09]} Be6 {[%clk 00:15:14]} {[%emt 00:00:05]} 6.
f4 {[%clk 00:15:12]} {[%emt 00:00:05]} g6 {[%clk 00:15:17]} {[%emt 00:00:02]} 7.
Nf3 {[%clk 00:15:15]} {[%emt 00:00:02]} Bg7 {[%clk 00:15:20]} {[%emt 00:00:01]}
8. O-O {[%clk 00:15:15]} {[%emt 00:00:04]} Nf6 {[%clk 00:15:03]} {[%emt
00:00:24]} 9. Qe1 {[%clk 00:15:19]} {[%emt 00:00:01]} Qc7 {[%clk 00:14:45]}
{[%emt 00:00:23]} 10. Kh1 {[%clk 00:15:20]} {[%emt 00:00:04]} h6 {[%clk
00:12:40]} {[%emt 00:02:10]} 11. Bd2 {[%clk 00:15:17]} {[%emt 00:00:08]} Nh7
{[%clk 00:12:17]} {[%emt 00:00:28]} 12. Rb1 {[%clk 00:14:39]} {[%emt 00:00:43]}
Bd7 {[%clk 00:11:06]} {[%emt 00:01:16]} 13. b3 {[%clk 00:14:33]} {[%emt
00:00:11]} a6 {[%clk 00:10:30]} {[%emt 00:00:41]} 14. Na4 {[%clk 00:14:16]}
{[%emt 00:00:22]} f5 {[%clk 00:08:44]} {[%emt 00:01:50]} 15. Ba5 {[%clk
00:14:12]} {[%emt 00:00:10]} Qb7 {[%clk 00:08:37]} {[%emt 00:00:12]} 16. Nb6
{[%clk 00:14:04]} {[%emt 00:00:13]} Rb8 {[%clk 00:08:29]} {[%emt 00:00:13]} 17.
Nh4 {[%clk 00:13:26]} {[%emt 00:00:43]} Kf7 {[%clk 00:07:53]} {[%emt 00:00:40]}
18. Qg3 {[%clk 00:12:40]} {[%emt 00:00:51]} Nf8 {[%clk 00:07:43]} {[%emt
00:00:16]} 19. Rbe1 {[%clk 00:12:31]} {[%emt 00:00:15]} e6 {[%clk 00:07:08]}
{[%emt 00:00:39]} 20. Nc4 {[%clk 00:12:26]} {[%emt 00:00:11]} Ke7 {[%clk
00:06:51]} {[%emt 00:00:21]} 21. exf5 {[%clk 00:12:25]} {[%emt 00:00:06]} gxf5
{[%clk 00:06:51]} {[%emt 00:00:04]} 22. Nxf5+ {[%clk 00:12:28]} {[%emt
00:00:03]} 1-0

[Event "Rapid Tournament (RAP)"]
[Site "Biel, Switzerland"]
[Date "2026.07.12"]
[Round "2.17"]
[White "Alsaqer, Meshal"]
[Black "Balabayeva, Xeniya"]
[Result "0-1"]
[TimeControl "15 + 5"]
[WhiteTitle "-"]
[BlackTitle "-"]
[WhiteFideId "10301771"]
[BlackFideId "13719688"]
[WhiteElo "1903"]
[BlackElo "2291"]

1. d4 {[%clk 00:14:58]} {[%emt 00:00:08]} d5 {[%clk 00:15:08]} {[%emt
00:00:06]} 2. Nf3 {[%clk 00:15:00]} {[%emt 00:00:03]} Nf6 {[%clk 00:15:11]}
{[%emt 00:00:02]} 3. c4 {[%clk 00:15:00]} {[%emt 00:00:05]} e6 {[%clk
00:15:15]} {[%emt 00:00:02]} 4. Nbd2 {[%clk 00:15:02]} {[%emt 00:00:02]} Be7
{[%clk 00:14:54]} {[%emt 00:00:26]} 5. g3 {[%clk 00:14:55]} {[%emt 00:00:11]}
O-O {[%clk 00:14:42]} {[%emt 00:00:18]} 6. Qc2 {[%clk 00:14:43]} {[%emt
00:00:17]} Nc6 {[%clk 00:12:21]} {[%emt 00:02:26]} 7. Bg2 {[%clk 00:14:25]}
{[%emt 00:00:23]} dxc4 {[%clk 00:11:45]} {[%emt 00:00:41]} 8. Qxc4 {[%clk
00:14:25]} {[%emt 00:00:04]} Qd5 {[%clk 00:11:49]} {[%emt 00:00:03]} 9. O-O
{[%clk 00:13:59]} {[%emt 00:00:30]} Rd8 {[%clk 00:10:55]} {[%emt 00:00:59]} 10.
e3 {[%clk 00:13:02]} {[%emt 00:01:01]} Bd7 {[%clk 00:09:56]} {[%emt 00:01:05]}
11. b3 {[%clk 00:11:00]} {[%emt 00:02:07]} Be8 {[%clk 00:08:28]} {[%emt
00:01:33]} 12. Bb2 {[%clk 00:10:42]} {[%emt 00:00:23]} a5 {[%clk 00:07:45]}
{[%emt 00:00:48]} 13. a3 {[%clk 00:08:37]} {[%emt 00:02:10]} Rab8 {[%clk
00:06:06]} {[%emt 00:01:45]} 14. Rac1 {[%clk 00:07:33]} {[%emt 00:01:08]} Rdc8
{[%clk 00:05:14]} {[%emt 00:00:56]} 15. Qc3 {[%clk 00:06:24]} {[%emt 00:01:15]}
Qd8 {[%clk 00:04:56]} {[%emt 00:00:24]} 16. Nc4 {[%clk 00:05:38]} {[%emt
00:00:50]} b5 {[%clk 00:02:35]} {[%emt 00:02:26]} 17. Nxa5 {[%clk 00:04:02]}
{[%emt 00:01:41]} Nd5 {[%clk 00:02:14]} {[%emt 00:00:26]} 18. Qe1 {[%clk
00:03:34]} {[%emt 00:00:32]} Nxa5 {[%clk 00:02:12]} {[%emt 00:00:09]} 19. Qxa5
{[%clk 00:03:37]} {[%emt 00:00:02]} Bb4 {[%clk 00:02:11]} {[%emt 00:00:05]} 20.
axb4 {[%clk 00:02:28]} {[%emt 00:01:14]} Ra8 {[%clk 00:02:15]} {[%emt
00:00:02]} 21. Ra1 {[%clk 00:01:52]} {[%emt 00:00:41]} Rxa5 {[%clk 00:01:43]}
22. bxa5 {[%clk 00:01:55]} {[%emt 00:00:37]} Ra8 {[%clk 00:01:33]} {[%emt
00:00:16]} 23. Ne5 {[%clk 00:01:37]} {[%emt 00:00:23]} c6 {[%clk 00:00:43]}
{[%emt 00:00:55]} 24. Bxd5 {[%clk 00:01:05]} {[%emt 00:00:36]} Qxd5 {[%clk
00:00:45]} {[%emt 00:00:04]} 25. b4 {[%clk 00:00:46]} {[%emt 00:00:24]} Qb3
{[%clk 00:00:17]} {[%emt 00:00:33]} 26. Ba3 {[%clk 00:00:41]} {[%emt 00:00:10]}
f6 {[%clk 00:00:18]} {[%emt 00:00:04]} 27. Rfb1 {[%clk 00:00:38]} {[%emt
00:00:09]} Qc2 {[%clk 00:00:18]} {[%emt 00:00:04]} 28. Rc1 {[%clk 00:00:38]}
{[%emt 00:00:06]} Qe4 {[%clk 00:00:21]} {[%emt 00:00:01]} 29. Rc5 {[%clk
00:00:10]} {[%emt 00:00:33]} fxe5 {[%clk 00:00:23]} {[%emt 00:00:03]} 30. Rxe5
{[%clk 00:00:08]} {[%emt 00:00:07]} Qf3 {[%clk 00:00:25]} {[%emt 00:00:03]} 31.
Rxe6 {[%clk 00:00:06]} {[%emt 00:00:08]} Bd7 {[%clk 00:00:28]} {[%emt
00:00:02]} 0-1